{"text_format":"3","workbook":"xlsx","n_sheets":1,"sheets":["Miesięczny budżet rodzinny"],"not_rendered":{"charts":2,"defined_names":2},"read":"whole","date_system":"1900"}

{"sheet":"Miesięczny budżet rodzinny","index":0,"n_rows":68,"n_cols":17,"rows_kept":68,"merged":[[0,1,0,7],[2,1,2,2],[2,6,2,7],[7,19,7,20],[8,6,8,7],[10,16,10,17],[13,19,13,20],[16,16,16,17],[18,1,18,4],[29,1,29,4],[36,1,36,4],[42,1,42,4],[54,1,54,4],[61,1,61,4]]}
[]
[]
[null,"Koszt planowany razem",null,"Koszt rzeczywisty razem","Różnica razem",null,"Planowany przychód miesięczny"]
[null,null,{"$f":"Mieszkanie[[#Totals],[Koszt planowany]]+Transport[[#Totals],[Koszt planowany]]+Ubezpieczenie[[#Totals],[Koszt planowany]]+Wyżywienie[[#Totals],[Koszt planowany]]+Dzieci[[#Totals],[Koszt planowany]]+Prawne[[#Totals],[Koszt planowany]]+Oszczędności[[#Totals],[Koszt planowany]]+Pożyczki[[#Totals],[Koszt planowany]]+Rozrywka[[#Totals],[Koszt planowany]]+Podatki[[#Totals],[Koszt planowany]]+WydatkiOsobiste[[#Totals],[Koszt planowany]]+Zwierzęta_domowe[[#Totals],[Koszt planowany]]+Prezenty[[#Totals],[Koszt planowany]]","v":{"v":3941,"d":"3,941 zł"}},{"$f":"Mieszkanie[[#Totals],[Koszt rzeczywisty]]+Transport[[#Totals],[Koszt rzeczywisty]]+Ubezpieczenie[[#Totals],[Koszt rzeczywisty]]+Wyżywienie[[#Totals],[Koszt rzeczywisty]]+Dzieci[[#Totals],[Koszt rzeczywisty]]+Prawne[[#Totals],[Koszt rzeczywisty]]+Oszczędności[[#Totals],[Koszt rzeczywisty]]+Pożyczki[[#Totals],[Koszt rzeczywisty]]+Rozrywka[[#Totals],[Koszt rzeczywisty]]+Podatki[[#Totals],[Koszt rzeczywisty]]+WydatkiOsobiste[[#Totals],[Koszt rzeczywisty]]+Zwierzęta_domowe[[#Totals],[Koszt rzeczywisty]]+Prezenty[[#Totals],[Koszt rzeczywisty]]","v":{"v":4034,"d":"4,034 zł"}},{"$f":"Mieszkanie[[#Totals],[Różnica]]+Transport[[#Totals],[Różnica]]+Ubezpieczenie[[#Totals],[Różnica]]+Wyżywienie[[#Totals],[Różnica]]+Dzieci[[#Totals],[Różnica]]+Prawne[[#Totals],[Różnica]]+Oszczędności[[#Totals],[Różnica]]+Pożyczki[[#Totals],[Różnica]]+Rozrywka[[#Totals],[Różnica]]+Podatki[[#Totals],[Różnica]]+WydatkiOsobiste[[#Totals],[Różnica]]+Zwierzęta_domowe[[#Totals],[Różnica]]+Prezenty[[#Totals],[Różnica]]","v":{"v":-93,"d":"(93 zł)"}},null,"Przychód 1",{"v":1500,"d":"1,500 zł"}]
[{"$nulls":6},"Przychód 2",{"v":1200,"d":"1,200 zł"}]
[null,"Mieszkanie","Koszt planowany","Koszt rzeczywisty","Różnica",null,"Przychód dodatkowy",{"v":300,"d":"300 zł"}]
[null,"Spłata drugiego kredytu lub czynsz",{"v":0,"d":"0 zł"},{"v":0,"d":"0 zł"},{"$f":"Mieszkanie[Koszt planowany]-Mieszkanie[Koszt rzeczywisty]","v":{"v":0,"d":"0 zł"}},null,"Całkowity przychód miesięczny",{"$f":"SUM(H4:H6)","v":{"v":3000,"d":"3,000 zł"}}]
[null,"Materiały",{"v":0,"d":"0 zł"},{"v":0,"d":"0 zł"},{"$f":"Mieszkanie[Koszt planowany]-Mieszkanie[Koszt rzeczywisty]","v":{"v":0,"d":"0 zł"}}]
[null,"Inne",{"v":0,"d":"0 zł"},{"v":0,"d":"0 zł"},{"$f":"Mieszkanie[Koszt planowany]-Mieszkanie[Koszt rzeczywisty]","v":{"v":0,"d":"0 zł"}},null,"Rzeczywisty przychód miesięczny",{"$nulls":3},"  "]
[null,"Woda i ścieki",{"v":8,"d":"8 zł"},{"v":8,"d":"8 zł"},{"$f":"Mieszkanie[Koszt planowany]-Mieszkanie[Koszt rzeczywisty]","v":{"v":0,"d":"0 zł"}},null,"Przychód 1",{"v":4000,"d":"4,000 zł"}]
[null,"Wywóz śmieci",{"v":10,"d":"10 zł"},{"v":10,"d":"10 zł"},{"$f":"Mieszkanie[Koszt planowany]-Mieszkanie[Koszt rzeczywisty]","v":{"v":0,"d":"0 zł"}},null,"Przychód 2",{"v":1200,"d":"1,200 zł"}]
[null,"Konserwacja lub naprawy",{"v":23,"d":"23 zł"},{"v":23,"d":"23 zł"},{"$f":"Mieszkanie[Koszt planowany]-Mieszkanie[Koszt rzeczywisty]","v":{"v":0,"d":"0 zł"}},null,"Przychód dodatkowy",{"v":300,"d":"300 zł"}]
[null,"Gaz",{"v":22,"d":"22 zł"},{"v":35,"d":"35 zł"},{"$f":"Mieszkanie[Koszt planowany]-Mieszkanie[Koszt rzeczywisty]","v":{"v":-13,"d":"-13 zł"}},null,"Całkowity przychód miesięczny",{"$f":"SUM(H10:H12)","v":{"v":5500,"d":"5,500 zł"}}]
[null,"Telewizja kablowa",{"v":34,"d":"34 zł"},{"v":34,"d":"34 zł"},{"$f":"Mieszkanie[Koszt planowany]-Mieszkanie[Koszt rzeczywisty]","v":{"v":0,"d":"0 zł"}}]
[null,"Telefon",{"v":120,"d":"120 zł"},{"v":120,"d":"120 zł"},{"$f":"Mieszkanie[Koszt planowany]-Mieszkanie[Koszt rzeczywisty]","v":{"v":0,"d":"0 zł"}},null,"Saldo planowane\n",{"$f":"SUM(H7-C4)","v":{"v":-941,"d":"(941 zł)"}}]
[null,"Prąd",{"v":44,"d":"44 zł"},{"v":44,"d":"44 zł"},{"$f":"Mieszkanie[Koszt planowany]-Mieszkanie[Koszt rzeczywisty]","v":{"v":0,"d":"0 zł"}},null,"Saldo rzeczywiste",{"$f":"SUM(H13-D4)","v":{"v":1466,"d":"1,466 zł"}}]
[null,"Spłata kredytu lub czynsz",{"v":1100,"d":"1,100 zł"},{"v":1100,"d":"1,100 zł"},{"$f":"Mieszkanie[Koszt planowany]-Mieszkanie[Koszt rzeczywisty]","v":{"v":0,"d":"0 zł"}},null,"Różnica",{"$f":"SUM(H16-H15)","v":{"v":2407,"d":"2,407 zł"}}]
[null,"Razem",{"$f":"SUBTOTAL(109,Mieszkanie[Koszt planowany])","v":{"v":1361,"d":"1,361 zł"}},{"$f":"SUBTOTAL(109,Mieszkanie[Koszt rzeczywisty])","v":{"v":1374,"d":"1,374 zł"}},{"$f":"SUBTOTAL(109,Mieszkanie[Różnica])","v":{"v":-13,"d":"(13 zł)"}}]
[]
[null,"Transport","Koszt planowany","Koszt rzeczywisty","Różnica",null,"Rozrywka","Koszt planowany","Koszt rzeczywisty","Różnica"]
[null,"Opłaty za pojazd 1",{"v":350,"d":"350 zł"},{"v":350,"d":"350 zł"},{"$f":"Transport[Koszt planowany]-Transport[Koszt rzeczywisty]","v":{"v":0,"d":"0 zł"}},null,"Filmy wideo/DVD",null,null,{"$f":"Rozrywka[Koszt planowany]-Rozrywka[Koszt rzeczywisty]","v":{"v":0,"d":"0 zł"}}]
[null,"Opłaty za pojazd 2",{"v":200,"d":"200 zł"},{"v":200,"d":"200 zł"},{"$f":"Transport[Koszt planowany]-Transport[Koszt rzeczywisty]","v":{"v":0,"d":"0 zł"}},null,"Płyty CD",null,null,{"$f":"Rozrywka[Koszt planowany]-Rozrywka[Koszt rzeczywisty]","v":{"v":0,"d":"0 zł"}}]
[null,"Opłaty za taksówki/autobusy",{"v":100,"d":"100 zł"},{"v":100,"d":"100 zł"},{"$f":"Transport[Koszt planowany]-Transport[Koszt rzeczywisty]","v":{"v":0,"d":"0 zł"}},null,"Filmy",{"v":50,"d":"50 zł"},{"v":50,"d":"50 zł"},{"$f":"Rozrywka[Koszt planowany]-Rozrywka[Koszt rzeczywisty]","v":{"v":0,"d":"0 zł"}}]
[null,"Paliwo",{"v":60,"d":"60 zł"},{"v":60,"d":"60 zł"},{"$f":"Transport[Koszt planowany]-Transport[Koszt rzeczywisty]","v":{"v":0,"d":"0 zł"}},null,"Koncerty",{"v":300,"d":"300 zł"},{"v":300,"d":"300 zł"},{"$f":"Rozrywka[Koszt planowany]-Rozrywka[Koszt rzeczywisty]","v":{"v":0,"d":"0 zł"}},{"$nulls":5},"Mieszkanie",1300]
[null,"Ubezpieczenie",{"v":50,"d":"50 zł"},{"v":50,"d":"50 zł"},{"$f":"Transport[Koszt planowany]-Transport[Koszt rzeczywisty]","v":{"v":0,"d":"0 zł"}},null,"Imprezy sportowe",null,null,{"$f":"Rozrywka[Koszt planowany]-Rozrywka[Koszt rzeczywisty]","v":{"v":0,"d":"0 zł"}},{"$nulls":5},"Transport",800]
[null,"Konserwacja",{"v":20,"d":"20 zł"},{"v":0,"d":"0 zł"},{"$f":"Transport[Koszt planowany]-Transport[Koszt rzeczywisty]","v":{"v":20,"d":"20 zł"}},null,"Teatr",{"v":100,"d":"100 zł"},{"v":100,"d":"100 zł"},{"$f":"Rozrywka[Koszt planowany]-Rozrywka[Koszt rzeczywisty]","v":{"v":0,"d":"0 zł"}},{"$nulls":5},"Ubezpieczenie",500]
[null,"Licencje",null,null,{"$f":"Transport[Koszt planowany]-Transport[Koszt rzeczywisty]","v":{"v":0,"d":"0 zł"}},null,"Inne",null,null,{"$f":"Rozrywka[Koszt planowany]-Rozrywka[Koszt rzeczywisty]","v":{"v":0,"d":"0 zł"}},{"$nulls":5},"Wyżywienie",700]
[null,"Inne",null,null,{"$f":"Transport[Koszt planowany]-Transport[Koszt rzeczywisty]","v":{"v":0,"d":"0 zł"}},null,"Razem",{"$f":"SUBTOTAL(109,Rozrywka[Koszt planowany])","v":{"v":450,"d":"450 zł"}},{"$f":"SUBTOTAL(109,Rozrywka[Koszt rzeczywisty])","v":{"v":450,"d":"450 zł"}},{"$f":"SUBTOTAL(109,Rozrywka[Różnica])","v":{"v":0,"d":"0 zł"}},{"$nulls":5},"Dzieci",500]
[null,"Razem",{"$f":"SUBTOTAL(109,Transport[Koszt planowany])","v":{"v":780,"d":"780 zł"}},{"$f":"SUBTOTAL(109,Transport[Koszt rzeczywisty])","v":{"v":760,"d":"760 zł"}},{"$f":"SUBTOTAL(109,Transport[Różnica])","v":{"v":20,"d":"20 zł"}},{"$nulls":10},"Rozrywka",500]
[{"$nulls":6},"Prezenty i datki","Koszt planowany","Koszt rzeczywisty","Różnica",{"$nulls":5},"Prezenty",400]
[null,"Ubezpieczenie","Koszt planowany","Koszt rzeczywisty","Różnica",null,"Cele charytatywne 1",null,null,{"$f":"Prezenty[Koszt planowany]-Prezenty[Koszt rzeczywisty]","v":{"v":0,"d":"0 zł"}},{"$nulls":5},"Zwierzęta domowe",800]
[null,"Dom",null,null,{"$f":"Ubezpieczenie[Koszt planowany]-Ubezpieczenie[Koszt rzeczywisty]","v":{"v":0,"d":"0 zł"}},null,"Cele charytatywne 2",null,null,{"$f":"Prezenty[Koszt planowany]-Prezenty[Koszt rzeczywisty]","v":{"v":0,"d":"0 zł"}},{"$nulls":5},"Wydatki osobiste",200]
[null,"Zdrowie",{"v":50,"d":"50 zł"},{"v":50,"d":"50 zł"},{"$f":"Ubezpieczenie[Koszt planowany]-Ubezpieczenie[Koszt rzeczywisty]","v":{"v":0,"d":"0 zł"}},null,"Cele charytatywne 3",null,null,{"$f":"Prezenty[Koszt planowany]-Prezenty[Koszt rzeczywisty]","v":{"v":0,"d":"0 zł"}},{"$nulls":5},"Oszczędności",500]
[null,"Życie",null,null,{"$f":"Ubezpieczenie[Koszt planowany]-Ubezpieczenie[Koszt rzeczywisty]","v":{"v":0,"d":"0 zł"}},null,"Razem",{"$f":"SUBTOTAL(109,Prezenty[Koszt planowany])","v":{"v":0,"d":"0 zł"}},{"$f":"SUBTOTAL(109,Prezenty[Koszt rzeczywisty])","v":{"v":0,"d":"0 zł"}},{"$f":"SUBTOTAL(109,Prezenty[Różnica])","v":{"v":0,"d":"0 zł"}}]
[null,"Inne",null,null,{"$f":"Ubezpieczenie[Koszt planowany]-Ubezpieczenie[Koszt rzeczywisty]","v":{"v":0,"d":"0 zł"}}]
[null,"Razem",{"$f":"SUBTOTAL(109,Ubezpieczenie[Koszt planowany])","v":{"v":50,"d":"50 zł"}},{"$f":"SUBTOTAL(109,Ubezpieczenie[Koszt rzeczywisty])","v":{"v":50,"d":"50 zł"}},{"$f":"SUBTOTAL(109,Ubezpieczenie[Różnica])","v":{"v":0,"d":"0 zł"}},null,"Zwierzęta domowe","Koszt planowany","Koszt rzeczywisty","Różnica"]
[{"$nulls":6},"Wyżywienie",null,null,{"$f":"Zwierzęta_domowe[Koszt planowany]-Zwierzęta_domowe[Koszt rzeczywisty]","v":{"v":0,"d":"0 zł"}}]
[null,"Wyżywienie","Koszt planowany","Koszt rzeczywisty","Różnica",null,"Opieka medyczna",null,null,{"$f":"Zwierzęta_domowe[Koszt planowany]-Zwierzęta_domowe[Koszt rzeczywisty]","v":{"v":0,"d":"0 zł"}}]
[null,"Artykuły spożywcze",{"v":200,"d":"200 zł"},{"v":300,"d":"300 zł"},{"$f":"Wyżywienie[Koszt planowany]-Wyżywienie[Koszt rzeczywisty]","v":{"v":-100,"d":"-100 zł"}},null,"Pielęgnacja",null,null,{"$f":"Zwierzęta_domowe[Koszt planowany]-Zwierzęta_domowe[Koszt rzeczywisty]","v":{"v":0,"d":"0 zł"}}]
[null,"Restauracje",{"v":500,"d":"500 zł"},{"v":200,"d":"200 zł"},{"$f":"Wyżywienie[Koszt planowany]-Wyżywienie[Koszt rzeczywisty]","v":{"v":300,"d":"300 zł"}},null,"Zabawki",null,null,{"$f":"Zwierzęta_domowe[Koszt planowany]-Zwierzęta_domowe[Koszt rzeczywisty]","v":{"v":0,"d":"0 zł"}}]
[null,"Inne",null,null,{"$f":"Wyżywienie[Koszt planowany]-Wyżywienie[Koszt rzeczywisty]","v":{"v":0,"d":"0 zł"}},null,"Inne",null,null,{"$f":"Zwierzęta_domowe[Koszt planowany]-Zwierzęta_domowe[Koszt rzeczywisty]","v":{"v":0,"d":"0 zł"}}]
[null,"Razem",{"$f":"SUBTOTAL(109,Wyżywienie[Koszt planowany])","v":{"v":700,"d":"700 zł"}},{"$f":"SUBTOTAL(109,Wyżywienie[Koszt rzeczywisty])","v":{"v":500,"d":"500 zł"}},{"$f":"SUBTOTAL(109,Wyżywienie[Różnica])","v":{"v":200,"d":"200 zł"}},null,"Razem",{"$f":"SUBTOTAL(109,Zwierzęta_domowe[Koszt planowany])","v":{"v":0,"d":"0 zł"}},{"$f":"SUBTOTAL(109,Zwierzęta_domowe[Koszt rzeczywisty])","v":{"v":0,"d":"0 zł"}},{"$f":"SUBTOTAL(109,Zwierzęta_domowe[Różnica])","v":{"v":0,"d":"0 zł"}}]
[]
[null,"Dzieci","Koszt planowany","Koszt rzeczywisty","Różnica",null,"Wydatki osobiste","Koszt planowany","Koszt rzeczywisty","Różnica"]
[null,"Opieka medyczna",null,null,{"$f":"Dzieci[Koszt planowany]-Dzieci[Koszt rzeczywisty]","v":{"v":0,"d":"0 zł"}},null,"Opieka medyczna",null,null,{"$f":"WydatkiOsobiste[Koszt planowany]-WydatkiOsobiste[Koszt rzeczywisty]","v":{"v":0,"d":"0 zł"}}]
[null,"Ubrania",{"v":200,"d":"200 zł"},{"v":200,"d":"200 zł"},{"$f":"Dzieci[Koszt planowany]-Dzieci[Koszt rzeczywisty]","v":{"v":0,"d":"0 zł"}},null,"Włosy/paznokcie",null,null,{"$f":"WydatkiOsobiste[Koszt planowany]-WydatkiOsobiste[Koszt rzeczywisty]","v":{"v":0,"d":"0 zł"}}]
[null,"Czesne",null,null,{"$f":"Dzieci[Koszt planowany]-Dzieci[Koszt rzeczywisty]","v":{"v":0,"d":"0 zł"}},null,"Ubrania",{"v":100,"d":"100 zł"},{"v":400,"d":"400 zł"},{"$f":"WydatkiOsobiste[Koszt planowany]-WydatkiOsobiste[Koszt rzeczywisty]","v":{"v":-300,"d":"-300 zł"}}]
[null,"Materiały szkolne",{"v":200,"d":"200 zł"},{"v":200,"d":"200 zł"},{"$f":"Dzieci[Koszt planowany]-Dzieci[Koszt rzeczywisty]","v":{"v":0,"d":"0 zł"}},null,"Pralnia chemiczna",null,null,{"$f":"WydatkiOsobiste[Koszt planowany]-WydatkiOsobiste[Koszt rzeczywisty]","v":{"v":0,"d":"0 zł"}}]
[null,"Opłaty na cele organizacji",null,null,{"$f":"Dzieci[Koszt planowany]-Dzieci[Koszt rzeczywisty]","v":{"v":0,"d":"0 zł"}},null,"Klub sportowy",null,null,{"$f":"WydatkiOsobiste[Koszt planowany]-WydatkiOsobiste[Koszt rzeczywisty]","v":{"v":0,"d":"0 zł"}}]
[null,"Opłaty za obiady",{"v":100,"d":"100 zł"},{"v":100,"d":"100 zł"},{"$f":"Dzieci[Koszt planowany]-Dzieci[Koszt rzeczywisty]","v":{"v":0,"d":"0 zł"}},null,"Opłaty na cele organizacji",null,null,{"$f":"WydatkiOsobiste[Koszt planowany]-WydatkiOsobiste[Koszt rzeczywisty]","v":{"v":0,"d":"0 zł"}}]
[null,"Opieka nad dziećmi",null,null,{"$f":"Dzieci[Koszt planowany]-Dzieci[Koszt rzeczywisty]","v":{"v":0,"d":"0 zł"}},null,"Inne",null,null,{"$f":"WydatkiOsobiste[Koszt planowany]-WydatkiOsobiste[Koszt rzeczywisty]","v":{"v":0,"d":"0 zł"}}]
[null,"Zabawki/gry",null,null,{"$f":"Dzieci[Koszt planowany]-Dzieci[Koszt rzeczywisty]","v":{"v":0,"d":"0 zł"}},null,"Razem",{"$f":"SUBTOTAL(109,WydatkiOsobiste[Koszt planowany])","v":{"v":100,"d":"100 zł"}},{"$f":"SUBTOTAL(109,WydatkiOsobiste[Koszt rzeczywisty])","v":{"v":400,"d":"400 zł"}},{"$f":"SUBTOTAL(109,WydatkiOsobiste[Różnica])","v":{"v":-300,"d":"(300 zł)"}}]
[null,"Inne",null,null,{"$f":"Dzieci[Koszt planowany]-Dzieci[Koszt rzeczywisty]","v":{"v":0,"d":"0 zł"}}]
[null,"Razem",{"$f":"SUBTOTAL(109,Dzieci[Koszt planowany])","v":{"v":500,"d":"500 zł"}},{"$f":"SUBTOTAL(109,Dzieci[Koszt rzeczywisty])","v":{"v":500,"d":"500 zł"}},{"$f":"SUBTOTAL(109,Dzieci[Różnica])","v":{"v":0,"d":"0 zł"}},null,"Pożyczki","Koszt planowany","Koszt rzeczywisty","Różnica"]
[{"$nulls":6},"Osobiste",null,null,{"$f":"Pożyczki[Koszt planowany]-Pożyczki[Koszt rzeczywisty]","v":{"v":0,"d":"0 zł"}}]
[null,"Prawne","Koszt planowany","Koszt rzeczywisty","Różnica",null,"Studenckie",null,null,{"$f":"Pożyczki[Koszt planowany]-Pożyczki[Koszt rzeczywisty]","v":{"v":0,"d":"0 zł"}}]
[null,"Prawnik",null,null,{"$f":"Prawne[Koszt planowany]-Prawne[Koszt rzeczywisty]","v":{"v":0,"d":"0 zł"}},null,"Karta kredytowa",null,null,{"$f":"Pożyczki[Koszt planowany]-Pożyczki[Koszt rzeczywisty]","v":{"v":0,"d":"0 zł"}}]
[null,"Alimenty",null,null,{"$f":"Prawne[Koszt planowany]-Prawne[Koszt rzeczywisty]","v":{"v":0,"d":"0 zł"}},null,"Karta kredytowa",null,null,{"$f":"Pożyczki[Koszt planowany]-Pożyczki[Koszt rzeczywisty]","v":{"v":0,"d":"0 zł"}}]
[null,"Płatności",null,null,{"$f":"Prawne[Koszt planowany]-Prawne[Koszt rzeczywisty]","v":{"v":0,"d":"0 zł"}},null,"Karta kredytowa",null,null,{"$f":"Pożyczki[Koszt planowany]-Pożyczki[Koszt rzeczywisty]","v":{"v":0,"d":"0 zł"}}]
[null,"Inne",null,null,{"$f":"Prawne[Koszt planowany]-Prawne[Koszt rzeczywisty]","v":{"v":0,"d":"0 zł"}},null,"Inne",null,null,{"$f":"Pożyczki[Koszt planowany]-Pożyczki[Koszt rzeczywisty]","v":{"v":0,"d":"0 zł"}}]
[null,"Razem",{"$f":"SUBTOTAL(109,Prawne[Koszt planowany])","v":{"v":0,"d":"0 zł"}},{"$f":"SUBTOTAL(109,Prawne[Koszt rzeczywisty])","v":{"v":0,"d":"0 zł"}},{"$f":"SUBTOTAL(109,Prawne[Różnica])","v":{"v":0,"d":"0 zł"}},null,"Razem",{"$f":"SUBTOTAL(109,Pożyczki[Koszt planowany])","v":{"v":0,"d":"0 zł"}},{"$f":"SUBTOTAL(109,Pożyczki[Koszt rzeczywisty])","v":{"v":0,"d":"0 zł"}},{"$f":"SUBTOTAL(109,Pożyczki[Różnica])","v":{"v":0,"d":"0 zł"}}]
[]
[null,"Oszczędności/inwestycje","Koszt planowany","Koszt rzeczywisty","Różnica",null,"Podatki","Koszt planowany","Koszt rzeczywisty","Różnica"]
[null,"Fundusz emerytalny",null,null,{"$f":"Oszczędności[Koszt planowany]-Oszczędności[Koszt rzeczywisty]","v":{"v":0,"d":"0 zł"}},null,"Podatek 1",null,null,{"$f":"Podatki[Koszt planowany]-Podatki[Koszt rzeczywisty]","v":{"v":0,"d":"0 zł"}}]
[null,"Fundusz inwestycyjny",null,null,{"$f":"Oszczędności[Koszt planowany]-Oszczędności[Koszt rzeczywisty]","v":{"v":0,"d":"0 zł"}},null,"Podatek 2",null,null,{"$f":"Podatki[Koszt planowany]-Podatki[Koszt rzeczywisty]","v":{"v":0,"d":"0 zł"}}]
[null,"Szkoła/uczelnia",null,null,{"$f":"Oszczędności[Koszt planowany]-Oszczędności[Koszt rzeczywisty]","v":{"v":0,"d":"0 zł"}},null,"Podatek 3",null,null,{"$f":"Podatki[Koszt planowany]-Podatki[Koszt rzeczywisty]","v":{"v":0,"d":"0 zł"}}]
[null,"Inne",null,null,{"$f":"Oszczędności[Koszt planowany]-Oszczędności[Koszt rzeczywisty]","v":{"v":0,"d":"0 zł"}},null,"Inne",null,null,{"$f":"Podatki[Koszt planowany]-Podatki[Koszt rzeczywisty]","v":{"v":0,"d":"0 zł"}}]
[null,"Razem",{"$f":"SUBTOTAL(109,Oszczędności[Koszt planowany])","v":{"v":0,"d":"0 zł"}},{"$f":"SUBTOTAL(109,Oszczędności[Koszt rzeczywisty])","v":{"v":0,"d":"0 zł"}},{"$f":"SUBTOTAL(109,Oszczędności[Różnica])","v":{"v":0,"d":"0 zł"}},null,"Razem",{"$f":"SUBTOTAL(109,Podatki[Koszt planowany])","v":{"v":0,"d":"0 zł"}},{"$f":"SUBTOTAL(109,Podatki[Koszt rzeczywisty])","v":{"v":0,"d":"0 zł"}},{"$f":"SUBTOTAL(109,Podatki[Różnica])","v":{"v":0,"d":"0 zł"}}]